Cogmind - Beta 16.1 @@@ ROGUE MODE // 2026.02.26 @ 14:44:07 Player: Ceorik Result: Destroyed by Y-64 Sentinel with KE Penetrator Performance ------------- Evolutions (1) 500 Regions Visited (6) 1200 Robots Destroyed (23) 115 Value Destroyed (472) 472 Prototype IDs (1) 20 Alien Tech Used (0) 0 Bonus (713) 713 TOTAL SCORE: 3020 Bonus ------- Follower Combat Kills 228 Met Imprinter 300 Was Imprinted 300 Friendly Fire -115 Cogmind --------- Core Integrity 0/400 Matter 300/300 Energy 170/170 System Corruption 0% Temperature Cool (9) Movement Rolling (175) Ox5 Location -6/Proximity Caves Parts ------- > --- POWER (1) -------- Light Antimatter Reactor > --- PROPULSION (2) --- Light Treads Compact Wheel > --- UTILITY (4) ------ Coolant Injector Huge Storage Unit Power Shielding Utility Shielding > --- WEAPON (2) ------- (None) > --- INVENTORY (25) --- Light Fission Core Light Treads Disposable Heat Sink Small Matter Pod (50) Small Matter Pod (50) Medium Matter Pod (100) Medium Matter Pod (100) Sensor Array Improved Terrain Scanner Seismic Detector Microactuators RU-N14's Throwing Claymores (5) RU-N14's Throwing Claymores (2) RU-N14's Throwing Claymores (3) RU-N14's Throwing Claymores (4) Makeshift Hammer Ripper Phasing Sabre CR-A16's Pointy Stick Peak State ------------ > --- POWER ------------ Light Antimatter Reactor > --- PROPULSION ------- Wheel Compact Wheel > --- UTILITY ---------- Coolant Injector Huge Storage Unit Power Shielding Utility Shielding > --- WEAPON ----------- Bore Cannon Rocket Launcher > --- INVENTORY -------- Light Fission Core Light Treads Light Treads Compact Wheel Disposable Heat Sink Small Matter Pod Small Matter Pod Medium Matter Pod Medium Matter Pod Sensor Array Improved Terrain Scanner Seismic Detector Microactuators Beam Rifle Bore Cannon RU-N14's Throwing Claymores RU-N14's Throwing Claymores RU-N14's Throwing Claymores RU-N14's Throwing Claymores Makeshift Hammer Ripper Phasing Sabre CR-A16's Pointy Stick [Rating: 30] Favorites ----------- Power Ion Engine Engine Ion Engine Reactor Light Antimatter Reactor Propulsion Compact Wheel Treads Light Treads Wheel Compact Wheel Utility Huge Storage Unit Device Seismic Detector Storage Huge Storage Unit Processor Targeting Computer Protection Power Shielding Weapon Beam Rifle Energy Gun Beam Rifle Ballistic Gun Light Assault Rifle Ballistic Cannon Light Cannon Launcher Mini Grenade Launcher Special Weapon RU-N14's Throwing Claymores Impact Weapon Makeshift Hammer Build | -11 -10 -10 -9 -9 -7 -6 ------- Run | Yrd Mat Min Mat Min Zio Pro Slots Evolved 2 | . . . 2 . . . Power . | . . . . . . . Propulsion . | . . . . . . . Utility 2 | . . . 2 . . . Weapon . | . . . . . . . Parts Attached 36 | 8 7 . 8 . 6 7 Power 5 | 1 2 . . . 1 1 Engine 4 | 1 2 . . . 1 . Core . | . . . . . . . Reactor 1 | . . . . . . 1 Propulsion 9 | 2 2 . 3 . . 2 Treads 4 | 2 . . 1 . . 1 Leg . | . . . . . . . Wheel 5 | . 2 . 2 . . 1 Hover . | . . . . . . . Flight . | . . . . . . . Utility 9 | 2 2 . 2 . 2 1 Device 3 | 1 . . . . 1 1 Storage 3 | 1 1 . 1 . . . Processor 1 | . . . 1 . . . Hackware . | . . . . . . . Protection 2 | . 1 . . . 1 . Artifact . | . . . . . . . Weapon 13 | 3 1 . 3 . 3 3 Energy Gun 2 | 1 . . 1 . . . Energy Cannon . | . . . . . . . Ballistic Gun 3 | 2 . . 1 . . . Ballistic Cannon 3 | . 1 . . . . 2 Launcher 2 | . . . 1 . . 1 Special Weapon 1 | . . . . . 1 . Impact Weapon 2 | . . . . . 2 . Slashing Weapon . | . . . . . . . Piercing Weapon . | . . . . . . . Special Melee Weapon . | . . . . . . . Unidentified Prototypes 1 | . . . . . 1 . Parts Lost 10 | . 1 . 2 . . 7 Power 2 | . 1 . . . . 1 Propulsion 4 | . . . 2 . . 2 Utility . | . . . . . . . Weapon 4 | . . . . . . 4 Highest Loss Streak 7 | . 1 . 2 . . 7 To Critical Strikes . | . . . . . . . Average Backups 21 | 1 14 25 23 24 24 23 Power 1 | . . 1 1 1 . 1 Propulsion 3 | . 2 6 5 4 3 2 Utility 8 | . 4 10 9 10 10 9 Weapon 8 | . 6 8 8 9 10 9 Tool/Special . | . . . . . . . Unused Backups 30 | . 1 2 2 1 10 14 Power 1 | . . . . . . 1 Propulsion . | . . . . . . . Utility 11 | . . 1 1 . 2 7 Weapon 18 | . 1 1 1 1 8 6 Tool/Special . | . . . . . . . Average Slot Usage (%) 99 | . 99 100 99 100 100 99 Engine 11 | . 14 14 11 11 11 9 Treads 1 | . 9 . . . . 1 Wheel 21 | . 18 28 21 22 22 20 Device 12 | . 10 14 11 11 13 11 Storage 11 | . 14 14 11 11 11 11 Processor 5 | . . . 10 11 8 . Protection 9 | . 3 . 11 11 11 22 Energy Gun 8 | . 7 . 6 11 11 10 Ballistic Gun 6 | . 13 14 10 6 1 . Ballistic Cannon 4 | . 5 14 4 . . 10 Impact Weapon 3 | . . . . . 9 . Peak Build Rating 30 | 7 9 9 14 14 27 30 Average Rating 15 | 5 7 9 12 13 19 25 On Entrance 10 | . 7 9 9 13 14 24 Avg Prop Armor Cover (%) 12 | . . . . . . 12 Naked Turns . | . . . . . . . Heaviest Build 107 | 12 90 90 93 93 95 107 Greatest Support 40 | 40 40 32 32 26 26 26 Greatest Overweight (x) 6 | . 2 2 3 3 3 6 Average Overweight (x) 2 | . 1 2 2 3 3 3 Largest Inventory Capacity 25 | 8 25 25 25 25 25 25 Average Capacity 23 | 7 18 25 25 25 25 25 Most Carried 25 | 2 25 25 25 25 25 24 Average Carried 21 | 1 14 24 23 24 24 23 Final Capacity 25 | 8 25 25 25 25 25 25 Final Carried 25 | 2 25 25 24 25 24 19 Class Distribution -------------------- 61% | Mutant 38% | Scavenger-Mutant Dominant Class ---------------- Mutant | -10/Materials Mutant | -10/Mines Scavenger-Mutant | -9/Materials Scavenger-Mutant | -9/Mines Scavenger-Mutant | -7/Zion Mutant | -6/Proximity Caves Resources | -11 -10 -10 -9 -9 -7 -6 ----------- Run | Yrd Mat Min Mat Min Zio Pro Matter Collected 1470 | 287 288 195 116 57 283 244 Remotely . | . . . . . . . Salvage Created 618 | 112 233 . 87 30 . 156 Parts 37 | 1 11 . 8 4 . 13 Haulers Intercepted 1 | . 1 . . . . . Recyclers Shooed 1 | . 1 . . . . . Parts Field Recycled . | . . . . . . . Retrieved Matter . | . . . . . . . Parts Self-Destructed 16 | . . . . . 1 15 Prevented 6 | . . . . . . 6 Parts Restored . | . . . . . . . Kills | -11 -10 -10 -9 -9 -7 -6 ------- Run | Yrd Mat Min Mat Min Zio Pro Combat Hostiles Destroyed 18 | . 3 . 5 3 . 7 Guns 4 | . 3 . . . . 1 Cannons 1 | . . . 1 . . . AOE 13 | . . . 4 3 . 6 Classes Destroyed 7 | 2 2 . 2 . . 1 Tunneler 1 | 1 . . . . . . Hauler 1 | . 1 . . . . . Recycler 2 | 1 1 . . . . . Swarmer 13 | . . . 3 3 . 7 Grunt 3 | . 3 . . . . . Sentry 2 | . . . 2 . . . Mutant 1 | . . . . . . 1 Best Kill Streak 4 | 1 2 . 4 3 . 3 Combat Bots Only 4 | . 2 . 4 3 . 3 Max Kills in Single Turn 3 | 1 1 . 1 3 . 3 Gunslinging . | . . . . . . . Exploded 3 | . . . 1 3 . 3 Melee . | . . . . . . . Uniques/NPCs Destroyed . | . . . . . . . Combat | -11 -10 -10 -9 -9 -7 -6 -------- Run | Yrd Mat Min Mat Min Zio Pro Hostile Shots Fired 169 | . 35 . 28 2 . 104 Missed 52 | . 8 . 9 . . 35 Hits 117 | . 27 . 19 2 . 69 Projectile 117 | . 27 . 19 2 . 69 AOE 1 | . . . 1 . . . Critical Strikes 3 | . . . 2 . . 1 Actively Blocked 1 | . . . 1 . . . Damage Taken 1892 | . 346 . 348 15 . 1183 Core 443 | . 43 . 84 7 . 309 Absorbed by Shields . | . . . . . . . Redirected to Shielding 84 | . 23 . 20 . . 41 Regen/Repaired (Parts) 226 | . . . . . 226 . Core Remaining (%) 91 | 100 . 82 . . . . Volleys Fired 66 | 7 28 . 16 1 . 14 Largest 2 | 2 2 . 2 2 . 2 Hottest 104 | 70 70 . 86 86 . 104 Shots Fired 132 | 14 56 . 32 2 . 28 Gun 95 | 14 45 . 23 1 . 12 Cannon 24 | . 11 . 2 . . 11 Launcher 13 | . . . 7 1 . 5 Special . | . . . . . . . Kinetic 68 | 7 39 . 11 . . 11 Thermal 51 | 7 17 . 14 1 . 12 Explosive 13 | . . . 7 1 . 5 Electromagnetic . | . . . . . . . Robot Hit Streak 8 | 4 8 . 3 1 . 3 Robot Miss Streak 6 | 2 4 . 3 1 . 6 Penetration Max 1 | . . . . . . 1 Secondary Targets . | . . . . . . . Shots Hit Robots 70 | 10 38 . 12 1 . 9 Core Hits 47 | 3 14 . 7 3 . 20 Critical Kills 1 | . . . . . . 1 Critical Parts Destroyed 3 | . . . . . . 3 Critical Strikes 7 | . 2 . 1 . . 4 Burn 3 | . 2 . 1 . . . Destroy 4 | . . . . . . 4 Melee Attacks . | . . . . . . . Impact . | . . . . . . . Slashing . | . . . . . . . Piercing . | . . . . . . . Sneak Attacks . | . . . . . . . Combat Hostiles . | . . . . . . . Follow-up Attacks . | . . . . . . . Damage Inflicted 1905 | 96 466 . 404 135 . 804 Guns 615 | 96 324 . 108 . . 87 Cannons 340 | . 142 . 20 . . 178 Explosions 950 | . . . 276 135 . 539 Melee . | . . . . . . . Ramming . | . . . . . . . Kinetic 601 | 47 292 . 84 . . 178 Thermal 354 | 49 174 . 44 . . 87 Explosive 950 | . . . 276 135 . 539 Electromagnetic . | . . . . . . . Impact . | . . . . . . . Slashing . | . . . . . . . Piercing . | . . . . . . . Highest Corruption . | . . . . . . . Average Corruption . | . . . . . . . Corruption Purged . | . . . . . . . Corruption Blocked . | . . . . . . . Overload Shots . | . . . . . . . Overflow Damage . | . . . . . . . Projectiles . | . . . . . . . Explosions . | . . . . . . . Melee . | . . . . . . . Knockbacks 6 | . 3 . . . . 3 Impact . | . . . . . . . Kinetic 6 | . 3 . . . . 3 Secondary . | . . . . . . . Self-Inflicted Damage . | . . . . . . . Shots . | . . . . . . . Rammed . | . . . . . . . Targets Rammed . | . . . . . . . Kicked . | . . . . . . . Crushed . | . . . . . . . Highest Temperature 196 | 90 196 . 93 15 . 196 Average Temperature 60 | 43 69 . 29 10 . 81 Received Heat Transfer 498 | . 189 . 72 . . 237 Siege Activations . | . . . . . . . Martial Activations . | . . . . . . . Shielding Activations . | . . . . . . . Robots Disrupted . | . . . . . . . Combat Hostiles . | . . . . . . . Robots Corrupted . | . . . . . . . Combat Hostiles . | . . . . . . . Parts Fried . | . . . . . . . Impact Corruptions . | . . . . . . . Robots Melted . | . . . . . . . Combat Hostiles . | . . . . . . . Parts Melted . | . . . . . . . Heat Transferred 1221 | 148 666 . 185 . . 222 Parts Sabotaged . | . . . . . . . Parts Stolen . | . . . . . . . Parts Stripped . | . . . . . . . Power Chain Reactions . | . . . . . . . Alert | -11 -10 -10 -9 -9 -7 -6 ------- Run | Yrd Mat Min Mat Min Zio Pro Maximum Alert Level . | . . . . . . . Low Security (%) 100 | 100 100 100 100 100 . . Level 1 . | . . . . . . . Level 2 . | . . . . . . . Level 3 . | . . . . . . . Level 4 . | . . . . . . . Level 5 . | . . . . . . . High Security . | . . . . . . . Max Security . | . . . . . . . Peak Influence 142 | 5 40 . 142 79 . . Initial 13 | . . . . 13 . . Average 16 | . 4 . 46 30 . . Influence Increases 852 | 10 106 . 207 79 . 450 Destroy 0b10 Robot/C 500 | . 60 . 100 60 . 280 Destroy 0b10 Robot/NC 20 | 10 10 . . . . . Destroy Leader 62 | . 12 . 30 10 . 10 Allied During Kill 100 | . . . . . . 100 Successful Hack 27 | . 9 . 18 . . . Disable Machine 15 | . 15 . . . . . Destroy Structure 38 | . . . 29 9 . . Lose Combat Pursuer 90 | . . . 30 . . 60 Influence Decreases 700 | 10 106 . 171 86 29 298 Entered New Map 52 | . . . . 23 29 . Time Decay 518 | 10 106 . 171 63 . 168 Lost Part 70 | . . . . . . 70 Lost Ally 60 | . . . . . . 60 Squads Dispatched 1 | . 1 . . . . . Investigation . | . . . . . . . Extermination . | . . . . . . . Reinforcement 1 | . 1 . . . . . Assault . | . . . . . . . Garrison . | . . . . . . . Intercept . | . . . . . . . Searches Triggered . | . . . . . . . Construction Impeded . | . . . . . . . Haulers Reinforced . | . . . . . . . Active Scanning Responses . | . . . . . . . Cargo Convoy Interrupts . | . . . . . . . Stealth | -11 -10 -10 -9 -9 -7 -6 --------- Run | Yrd Mat Min Mat Min Zio Pro Distress Signals 2 | . . . 2 . . . Communications Jammed . | . . . . . . . Distress Signals . | . . . . . . . Times Spotted 42 | . 7 . 12 2 . 21 Peak Tracking Total 11 | . 2 . 5 2 . 11 Tactical Retreats 4 | . . . 1 . . 3 Traps | -11 -10 -10 -9 -9 -7 -6 ------- Run | Yrd Mat Min Mat Min Zio Pro Traps Triggered 1 | . 1 . . . . . Indirectly . | . . . . . . . Trap Hack Attempts . | . . . . . . . Triggered . | . . . . . . . Disarmed . | . . . . . . . Reprogrammed . | . . . . . . . Reused . | . . . . . . . Traps Extracted . | . . . . . . . Installed . | . . . . . . . Triggered . | . . . . . . . Machines | -11 -10 -10 -9 -9 -7 -6 ---------- Run | Yrd Mat Min Mat Min Zio Pro Machines Disabled 3 | . 1 . . . . 2 Max in Single Turn 1 | . 1 . . . . 1 Machines Repaired . | . . . . . . . Machines Dismantled . | . . . . . . . Machines Sabotaged . | . . . . . . . Overloaded Fab Kills . | . . . . . . . Hacking | -11 -10 -10 -9 -9 -7 -6 --------- Run | Yrd Mat Min Mat Min Zio Pro Machines Accessed 5 | . 4 . 1 . . . Terminals 5 | . 4 . 1 . . . Fabricators . | . . . . . . . Repair Stations . | . . . . . . . Recycling Units . | . . . . . . . Scanalyzers . | . . . . . . . Garrison Access . | . . . . . . . Total Hacks 21 | . 14 . 7 . . . Successful 8 | . 3 . 5 . . . Failed 13 | . 11 . 2 . . . Catastrophic 2 | . 1 . 1 . . . Database Lockouts . | . . . . . . . Manual 11 | . 9 . 2 . . . Terminals 21 | . 14 . 7 . . . Fabricators . | . . . . . . . Repair Stations . | . . . . . . . Recycling Units . | . . . . . . . Scanalyzers . | . . . . . . . Garrison Access . | . . . . . . . Terminal Hacks 5 | . 1 . 4 . . . Robot Analysis 1 | . 1 . . . . . Branch Access Points 1 | . . . 1 . . . Investigation Status 1 | . . . 1 . . . Registered Components 1 | . . . 1 . . . Zone Layout 1 | . . . 1 . . . Fabricator Hacks . | . . . . . . . Repair Station Hacks . | . . . . . . . Recycling Unit Hacks . | . . . . . . . Scanalyzer . | . . . . . . . Garrison Access Hacks . | . . . . . . . Unauthorized Hacks 3 | . 2 . 1 . . . Terminals 3 | . 2 . 1 . . . Botnet 3 | . 2 . 1 . . . Fabricators . | . . . . . . . Repair Stations . | . . . . . . . Recycling Units . | . . . . . . . Scanalyzers . | . . . . . . . Garrison Access . | . . . . . . . Data Cores Recovered . | . . . . . . . Used . | . . . . . . . Hacking Detections 5 | . 4 . 1 . . . Full Trace Events . | . . . . . . . Feedback Events . | . . . . . . . Feedback Blocked . | . . . . . . . Robot Schematics Acquired . | . . . . . . . Robots Built . | . . . . . . . Authchips . | . . . . . . . Time . | . . . . . . . Total Robot Build Rating . | . . . . . . . Part Schematics Acquired . | . . . . . . . Parts Built . | . . . . . . . Authchips . | . . . . . . . Time . | . . . . . . . Total Part Build Rating . | . . . . . . . Part Studies Acquired . | . . . . . . . Parts Repaired . | . . . . . . . Time . | . . . . . . . Parts Recycled . | . . . . . . . Recycled Matter . | . . . . . . . Retrieved Matter . | . . . . . . . Retrieved Components . | . . . . . . . Parts Scanalyzed . | . . . . . . . Part Schematics Acquired . | . . . . . . . Parts Damaged . | . . . . . . . Bothacking | -11 -10 -10 -9 -9 -7 -6 ------------ Run | Yrd Mat Min Mat Min Zio Pro Used RIF Installer . | . . . . . . . Robots Hacked . | . . . . . . . Non-combat . | . . . . . . . Combat . | . . . . . . . Robot Hacks Applied . | . . . . . . . Relay Couplers Released . | . . . . . . . Fabnet Peak Effective % . | . . . . . . . Robots Rewired . | . . . . . . . Allies Hacked . | . . . . . . . Hacks Repelled . | . . . . . . . Allies | -11 -10 -10 -9 -9 -7 -6 -------- Run | Yrd Mat Min Mat Min Zio Pro Total Allies 4 | . . . . . 4 . Largest Group 4 | . . . . . 4 4 Highest-Rated Group 156 | . . . . . 156 156 Highest-Rated Ally 41 | . . . . . 41 41 Total Orders . | . . . . . . . Ally Attacks 30 | . . . . . . 30 Total Damage 638 | . . . . . . 638 Kills 7 | . . . . . . 7 Allies Corrupted . | . . . . . . . Allies Melted . | . . . . . . . Intel | -11 -10 -10 -9 -9 -7 -6 ------- Run | Yrd Mat Min Mat Min Zio Pro Active Infowar (turns) 3557 | 45 685 566 653 177 1431 . Seismic 3557 | 45 685 566 653 177 1431 . Robot Analysis Total 1 | . 1 . . . . . Derelict Logs Recovered 4 | . . . . 1 2 1 Drone Launches . | . . . . . . . Drone Recoveries . | . . . . . . . Exploration | -11 -10 -10 -9 -9 -7 -6 ------------- Run | Yrd Mat Min Mat Min Zio Pro Turns Passed 4945 | 148 916 566 653 177 1977 508 Spaces Moved 3141 | 72 498 381 346 117 1405 322 Core 1 | 1 . . . . . . Treads 189 | 71 118 . . . . . Legs . | . . . . . . . Wheels 2951 | . 380 381 346 117 1405 322 Hover . | . . . . . . . Flight . | . . . . . . . Fastest Speed 50 | 50 100 130 130 135 135 135 Average Speed 135 | 158 136 130 132 135 135 137 Slowest Speed 190 | 160 160 130 135 135 135 190 Overloaded Moves . | . . . . . . . Propulsion Burnouts . | . . . . . . . Robots Hopped . | . . . . . . . Potential Cave-ins . | . . . . . . . Cave-ins Triggered . | . . . . . . . Exploration Rate (%) 40 | 4 53 45 27 23 91 42 Regions Visited 6 Branch Regions 4 Pre-discovered Areas 5 | . . . . 1 3 1 Known Exits Taken 1 | . . . 1 . . . Unknown Exits Taken 5 | 1 1 1 . 1 1 . Scrap Searched 6 | . . . . 1 4 1 Spaces Dug 17 | . . . 7 . . 10 Terrain Destroyed 78 | . . . 49 11 . 18 Melee . | . . . . . . . Projectile 2 | . . . . . . 2 AOE 76 | . . . 49 11 . 16 Terrain Rammed . | . . . . . . . Walls Destroyed . | . . . . . . . Machines Disabled . | . . . . . . . Actions | -11 -10 -10 -9 -9 -7 -6 --------- Run | Yrd Mat Min Mat Min Zio Pro Total 3714 | 89 686 453 508 133 1491 354 Wait 369 | 1 114 69 127 11 42 5 Move 3135 | 71 497 380 345 116 1404 322 Hop . | . . . . . . . Pick Up 55 | 2 26 2 5 2 18 . Fast Attach 13 | 7 5 . 1 . . . Attach 11 | . 1 . 4 . 1 5 Detach 2 | . 2 . . . . . Swap 31 | 1 7 . 6 2 7 8 Drop 32 | . 6 2 4 1 19 . Fire 66 | 7 28 . 16 1 . 14 Melee . | . . . . . . . Ram . | . . . . . . . Kick . | . . . . . . . Crush . | . . . . . . . Escape Stasis . | . . . . . . . Rewire . | . . . . . . . Trap . | . . . . . . . Miscellaneous . | . . . . . . . Route ------- -11/Scrapyard -10/Materials (discovered 2 exits: *Mat / [*Min]) -10/Mines -9/Materials (discovered 3 exits: [*Mat] / *Min x2) -9/Mines (discovered 2 exits: [*Mat] / [*Zio]) -7/Zion -6/Proximity Caves History --------- Turn | Location | Event 29 | -11/Scrapyard | Discovered new exit (range 15) 149 | -11/Scrapyard | Entered Materials 303 | -10/Materials | Build established: Mutant 410 | -10/Materials | Discovered new exit (range 16) 900 | -10/Materials | Discovered new exit (range 16) 1065 | -10/Materials | Entered Mines 1154 | -10/Mines | Received a Rocket Launcher from a helpful Derelict 1253 | -10/Mines | Assembled infested the area 1585 | -10/Mines | Discovered new exit (range 11) 1631 | -10/Mines | Entered Materials 1631 | -9/Materials | Evolved 2 slots: Utility x2 2100 | -9/Materials | Discovered new exit (range 16) 2123 | -9/Materials | Identified exit to Mines 2242 | -9/Materials | Build established: Scavenger-Mutant 2284 | -9/Materials | Entered Mines 2285 | -9/Mines | Learned location of Storage (-7) 2365 | -9/Mines | Discovered new exit (range 15) 2367 | -9/Mines | A Derelict revealed a hidden shortcut to a safe place 2399 | -9/Mines | Learned location of 1 exit from Materials 2461 | -9/Mines | Entered Zion 2786 | -7/Zion | Learned Factory recycling unit intel 2905 | -7/Zion | Learned Factory interactive machine intel 3066 | -7/Zion | Learned location of Armory (-3) 3101 | -7/Zion | Learned location of Recycling (-7) 3153 | -7/Zion | Given A8's code to call for help 3237 | -7/Zion | Found CR-A16's Pointy Stick 3514 | -7/Zion | Learned 4 Factory zone layouts 3581 | -7/Zion | Learned location of Warlord (-5) 3651 | -7/Zion | Found Prototype Special Weapon 3653 | -7/Zion | Found Prototype Special Weapon 3656 | -7/Zion | Found Prototype Special Weapon 3658 | -7/Zion | Found Prototype Special Weapon 3659 | -7/Zion | Identified RU-N14's Throwing Claymores (x4) 3896 | -7/Zion | Visited the Megawrench Repair Shop 3896 | -7/Zion | Megawrench repaired 7 parts 4016 | -7/Zion | Met Imprinter 4042 | -7/Zion | Imprinted 4045 | -7/Zion | Declared Zion's savior 4200 | -7/Zion | Build established: Mutant 4401 | -7/Zion | Discovered new exit (range 16) 4438 | -7/Zion | Entered Proximity Caves 4438 | -6/Proximity Caves | Accompanied by 4 allies 4456 | -6/Proximity Caves | Learned location of Extension (-6) 4732 | -6/Proximity Caves | Attracted the attention of an 0b10 checkpoint 4879 | -6/Proximity Caves | Attracted the attention of an 0b10 base 4884 | -6/Proximity Caves | Core integrity fell below 50% 4914 | -6/Proximity Caves | Core integrity fell below 20% 4929 | -6/Proximity Caves | Found DCF Scrap (13 items) 4933 | -6/Proximity Caves | Lost 4 allies 4946 | -6/Proximity Caves | Destroyed by Y-64 Sentinel with KE Penetrator Last Messages --------------- 04922_ Slug penetrates Wall. 04929_ Searching scrap... 04929_ Found Imp. Deuterium Engine. 04929_ Found Fusion Compressor. 04929_ Found Mak. Power Source. 04929_ Found Com. Wheel. 04929_ Found Mak. Leg. 04929_ Found Imp. Medium Treads. 04929_ Found Flexi-carbon Leg. 04929_ Found Imp. Cooling System. 04929_ Found Mak. Hacking Suite. 04929_ Found Hvy. Armor Plating. 04929_ Found Enh. Flamer. 04929_ Found Hpw. Shock Rifle. 04929_ Found 174 Matter. A note is attached: "With love, from the DCF." 04930_ Acquired 70 matter. 04937_ Penetrated by Slug. 04943_ Slug penetrates Wall. 04946_ Bore Cannon destroyed. Map ----- +----------------------------------------------------+ | | | | | | | | | | | | | | | | | | | | | | | | | | | ?????????????????????????????????????????????????? | | ?????????????????????????????????????????????????? | | ?????????????????????????????????????????????????? | | ?????????????????????????????????????????????????? | | ?????????????????????????????????????????????????? | | ?????????????????????????????????????????????????? | | ?????????????????????????????????????????????????? | | ?????????????????????????????????????????????????? | | ?????????????????????????????????????????????????? | | ?????????????????????????????????????????????????? | | ????????????######################???????????????? | | ???????????## !!|Y[* #???????????????? | | ???????????#; =!=Y== @ #???????????????? | | ???????????## *#######g/####### #???????????????? | | ??????###???# #?? #???????????????????????? | | ####### #### #"" #???????????????????????? | | ## ## #" ######???????????????????????? | | # #" #????????????????????????????? | | ### #"% # ???????????????????? | | ##?# [*+ % ""??????????????????????? | | #### !=%+ % ""??????????????????????? | | =%!!|%* % ""??????????????????????? | | ==!*!= % * * ""??????????????????????? | | #### !%* #" ?????????????????????? | | % ##?# !### #" "" ?????????????????????? | | ### #?## #" ###""?????????????????????? | | ## ##?# #" ????????????????????????? | | #?# #?% #???????????????????????? | | ##?# #??####+"##???????????????????????? | | ## #??# ?????? ????????????????????????? | | ## #### ?????? ???????????????????????? | | ## ##"##????????????????????????????????? | | # ??????????????????????????????????? | | ##??????????????????????????????????? | | #???????????????????????????????????? | | ##???????????????????????????????????? | | ## #????????????????????????????????????? | +----------------------------------------------------+ Best States ------------- Heat Dissipation 28 Coolant Potential 65 Energy Generation 21 Energy Capacity 250 Matter Stores 300 Matter Capacity 400 Sight Range 16 Terrain Scan Density 10 Power Shielding 33 Utility Shielding 33 Melee Speed Boost 20 Evasion (%) 40 Targeting Accuracy 5 Recoil Reduction 2 Item Schematics ----------------- None Robot Schematics ------------------ None Fabricated ------------ Nothing Repaired ---------- Nothing Studied --------- None Alien Tech Used ----------------- None Achievements -------------- None Challenges ------------ None Game ------ Seed ExplosiveShieldFist Manual? 0 Play Time 00:29:23 Cumulative 76.3 hours Start 2026.02.26 @ 14:09:16 End 2026.02.26 @ 14:44:07 Sessions 1 Manual Loads 0 Difficulty Rogue Special Mode None Game No. 76 Rogue 76 Adventurer 0 Explorer 0 Win Type - Total 0 Types 0/0/0/0/0/0/0/0/0/0 Lore% 57 Gallery% 43 Achievement% 36 Wizard Run 0 Options --------- Layout 1 ASCII 0 Keyboard 0 Movement Mouse Keybinds 0 Fullscreen 1 Font 24/Swanston Map View 50x35 Zoom Use 0% Tactical HUD 1 Map Filters NONE Filters NONE Steam 1 RUN: f083fe33-e438-49ca-b782-ac43e648d373